Cogmind - Beta 16 @@@ ROGUE MODE // 2025.12.13 @ 00:33:24 Player: AngelSpirit Result: Destroyed by X-87 Electro with Compact HERF Cannon Performance ------------- Evolutions (8) 4000 Regions Visited (23) 4600 Robots Destroyed (291) 1455 Value Destroyed (16316) 16316 Prototype IDs (61) 1220 Alien Tech Used (2) 400 Bonus (10457) 10457 TOTAL SCORE: 38448 Bonus ------- High Alert Combat Kills 4030 Follower Combat Kills 2623 Entered Garrisons 800 Used RIF Installer 2000 Entered DSFs 500 Aligned with FarCom 300 Met Zhirov 300 Friendly Fire -96 Cogmind --------- Core Integrity 0/1450 Matter 141/300 Energy 81/100 System Corruption 16% Temperature Cool (0) Movement Walking (120) Location -2/DSF Parts ------- > --- POWER (2) -------- (None) > --- PROPULSION (6) --- Centrium Leg > --- UTILITY (11) ----- Advanced Signal Interpreter Improved Armor Integrity Analyzer Advanced Weapon Cycler Authchip [R/Combat] Relay Coupler [Behemoth] (12) > --- WEAPON (4) ------- (None) > --- INVENTORY (5) ---- Combat Linear Gravjet Combat Linear Gravjet Improved Matter Compressor (0) Advanced System Restoration Module Advanced Remote Datajack Peak State ------------ > --- POWER ------------ Multi-Antimatter Reactor > --- PROPULSION ------- Wheeled Compact-NPA Exoskeleton > --- UTILITY ---------- Armored Scrap Engine Improved Coolant Injector Huge Storage Unit Layered Medium Armor Plating Advanced Force Field Advanced Hacking Suite Relay Coupler [NC] Relay Coupler [Grunt] > --- WEAPON ----------- Fusion Bomb Launcher Hvy. Accelerated Hardcell Construct/C Hpw. Ballistic Mass Construct/C > --- INVENTORY -------- Light Angular Momentum Engine Compact Wheel Improved Matter Compressor Advanced Signal Interpreter Matter Filter Launcher Loader Improved Weapon Cycler Experimental Power Shielding Layered Medium Armor Plating Layered Medium Armor Plating Advanced Force Field Authchip [R/Combat] Authchip [R/Combat] Relay Coupler [Sentry] Relay Coupler [Hunter] Relay Coupler [Hunter] Relay Coupler [Heavy] Relay Coupler [Behemoth] Transdimensional Reconstructor KN-7UR's Autopenetrator Improved Remote Datajack Improved Plasma Cutter [Rating: 147] Favorites ----------- Power Constructs Engine Angular Momentum Engine Power Core Light Nuclear Core Reactor Constructs Propulsion Constructs Treads Light Treads Leg Aluminum Leg Wheel Constructs Flight Unit Cooled Nuclear Pulse Thruster Utility Huge Storage Unit Device Armored Scrap Engine Storage Huge Storage Unit Processor Advanced Signal Interpreter Hackware Relay Coupler [Grunt] Protection Layered Medium Armor Plating Weapon Constructs Energy Gun Advanced Beam Rifle Energy Cannon Heavy Plasma Cannon Ballistic Gun Constructs Ballistic Cannon Constructs Launcher Shock Bomb Launcher Special Weapon Improved Remote Datajack Slashing Weapon Plasma Sword Build | -11 -10 -10 -10 -9 -8 -8 -8 -8 -7 -7 -7 -5 -5 -5 -5 -5 -5 -4 -4 -4 -3 -2 -2 ------- Run | Yrd Mat Min Exi Min Mat Gar Mat Gar Fac Sto Rec Fac Gar Fac Upp Upp Zhi Pro Fac Gar Res Res DSF Slots Evolved 16 | . . . . . 4 . . . 2 . . 4 . . . . . . 2 . 2 2 . Power 1 | . . . . . . . . . . . . 1 . . . . . . . . . . . Propulsion 4 | . . . . . 1 . . . . . . 1 . . . . . . 1 . 1 . . Utility 9 | . . . . . 2 . . . 2 . . 1 . . . . . . 1 . 1 2 . Weapon 2 | . . . . . 1 . . . . . . 1 . . . . . . . . . . . Parts Attached 183 | 6 9 4 . 2 14 18 11 9 12 10 4 3 9 8 5 2 3 4 3 8 22 2 15 Power 11 | 1 1 . . . 1 3 . 1 1 1 . . . . . . . . . . 1 . 1 Engine 5 | 1 . . . . . . . 1 1 1 . . . . . . . . . . 1 . . Core 5 | . 1 . . . 1 3 . . . . . . . . . . . . . . . . . Reactor 1 | . . . . . . . . . . . . . . . . . . . . . . . 1 Propulsion 27 | 2 1 1 . . 5 3 3 1 5 . 2 . . . . . 1 . . . . . 3 Treads 2 | . . . . . . . 1 1 . . . . . . . . . . . . . . . Leg 4 | . . . . . . 1 . . . . . . . . . . . . . . . . 3 Wheel 20 | 2 1 1 . . 5 2 2 . 5 . 2 . . . . . . . . . . . . Hover . | . . . . . . . . . . . . . . . . . . . . . . . . Flight 1 | . . . . . . . . . . . . . . . . . 1 . . . . . . Utility 97 | 1 3 1 . 1 3 10 1 5 5 3 1 3 8 6 4 2 2 4 3 7 18 1 5 Device 27 | . . . . . 1 2 . 2 1 1 1 . 2 4 3 . . 2 1 1 4 . 2 Storage 6 | 1 1 . . . . 1 . . . 1 . . . . . . 1 . . . 1 . . Processor 7 | . . . . . 1 . . . . . . . 1 . . . . . . 1 1 . 3 Hackware 32 | . . . . . . 2 . 2 3 1 . 2 5 1 1 . . 2 . 3 9 1 . Protection 25 | . 2 1 . 1 1 5 1 1 1 . . 1 . 1 . 2 1 . 2 2 3 . . Artifact . | . . . . . . . . . . . . . . . . . . . . . . . . Weapon 48 | 2 4 2 . 1 5 2 7 2 1 6 1 . 1 2 1 . . . . 1 3 1 6 Energy Gun 15 | . . . . . . . 6 . 1 1 1 . 1 1 . . . . . . 1 . 3 Energy Cannon 5 | . 2 . . . 1 1 . . . 1 . . . . . . . . . . . . . Ballistic Gun 7 | 2 . . . . 2 . 1 . . 2 . . . . . . . . . . . . . Ballistic Cannon 6 | . 1 1 . 1 1 . . 1 . . . . . . . . . . . . . . 1 Launcher 9 | . 1 1 . . 1 . . 1 . 1 . . . . . . . . . 1 1 . 2 Special Weapon 5 | . . . . . . 1 . . . 1 . . . 1 1 . . . . . 1 . . Impact Weapon . | . . . . . . . . . . . . . . . . . . . . . . . . Slashing Weapon 1 | . . . . . . . . . . . . . . . . . . . . . . 1 . Piercing Weapon . | . . . . . . . . . . . . . . . . . . . . . . . . Special Melee Weapon . | . . . . . . . . . . . . . . . . . . . . . . . . Unidentified Prototypes 17 | . . . . . . . 3 . 2 3 2 . . . . . 4 . 1 . 1 1 . Parts Lost 65 | . . 1 . . 1 10 1 1 3 1 . . 3 1 . 1 . . 1 2 28 . 11 Power 4 | . . . . . . 1 . . . . . . . . . . . . . . 2 . 1 Propulsion 17 | . . 1 . . 1 4 1 . 2 1 . . . . . . . . . . 5 . 2 Utility 24 | . . . . . . 3 . . . . . . 3 . . . . . . 1 14 . 3 Weapon 20 | . . . . . . 2 . 1 1 . . . . 1 . 1 . . 1 1 7 . 5 Highest Loss Streak 10 | . . 1 . . 1 5 1 1 3 1 . . 1 1 . 1 . . 1 1 10 . 7 To Critical Strikes 1 | . . . . . . . . . . . . . . . . . . . . . 1 . . Average Backups 18 | . 8 19 18 15 15 12 14 14 15 13 17 19 21 21 21 20 21 21 22 23 18 5 4 Power . | . . 1 1 1 1 1 1 1 1 1 1 1 1 1 1 1 1 1 1 1 . . . Propulsion 1 | . 2 2 2 2 2 . . . . 1 1 1 1 1 1 1 1 1 1 1 . . . Utility 12 | . 4 13 11 9 9 8 11 11 12 8 11 11 13 13 12 13 14 14 15 16 13 2 2 Weapon 2 | . . 1 3 2 1 1 1 1 1 2 4 6 5 5 6 3 2 1 1 1 1 1 . Tool/Special . | . . . . . . . . . . . . . . . . . . . . . . . . Unused Backups 30 | . 1 . 3 . 6 6 . 1 . . 1 . 6 . . 1 1 . 1 . 1 1 1 Power 3 | . 1 . . . . 1 . . . . . . 1 . . . . . . . . . . Propulsion 1 | . . . . . . . . . . . . . . . . . . . . . 1 . . Utility 23 | . . . 3 . 6 5 . 1 . . . . 5 . . . 1 . 1 . . . 1 Weapon 2 | . . . . . . . . . . . 1 . . . . 1 . . . . . . . Tool/Special 1 | . . . . . . . . . . . . . . . . . . . . . . 1 . Average Slot Usage (%) 72 | . 94 99 71 97 96 79 84 96 88 84 78 62 61 63 63 63 63 66 64 65 56 25 34 Engine 1 | . 7 . . . . . . 8 7 7 6 5 1 . . . . . . . . . . Core 2 | . 6 14 14 14 8 8 9 . . . . . . . . . . . . . . . . Reactor 2 | . . . . . . . . . . . . . 3 5 5 5 5 5 4 5 3 . 1 Treads 1 | . . . . . . . 4 9 2 . . . 3 5 2 . . . . 3 . . . Wheel 8 | . 27 27 28 28 26 18 14 18 19 18 10 . . . . . . . . . . . . Flight 1 | . . . . . . . . . . . . . . . . 1 6 11 6 1 2 . . Device 10 | . . . . . 4 4 9 9 7 7 11 11 14 14 16 11 11 12 15 14 13 . 3 Storage 6 | . 14 14 14 14 9 9 9 9 7 7 7 5 5 5 5 5 5 5 5 5 3 . . Hackware 8 | . . . . . . 2 . 7 9 11 15 12 10 11 11 11 11 9 8 9 11 16 13 Protection 5 | . 8 14 14 14 11 10 9 8 11 7 . 2 . 1 . 4 4 5 6 4 3 . . Energy Gun 2 | . . . . . . . 15 4 5 3 1 . . 1 . . . 2 6 4 . . 1 Energy Cannon 4 | . 11 13 . 12 8 7 9 9 6 3 6 5 1 . . 8 9 5 4 . 1 . . Ballistic Gun 2 | . 4 . . . 13 3 . . . 3 3 . 4 5 5 . . . . . . . . Ballistic Cannon 4 | . 11 14 . 13 3 10 . 4 4 3 1 5 4 5 4 . . . . 10 4 . . Special Weapon 3 | . . . . . . 2 . 2 2 5 7 5 4 3 4 5 5 4 4 2 2 . . Peak Build Rating 147 | 6 11 12 11 15 30 41 43 43 53 48 69 78 114 114 113 105 112 118 126 137 147 34 102 Average Rating 80 | 4 8 11 10 12 26 35 41 39 48 45 54 73 104 111 112 101 105 111 123 131 123 32 52 On Entrance 59 | . 6 11 11 11 15 30 37 43 38 45 47 69 77 111 112 104 105 108 118 124 134 29 34 Avg Prop Armor Cover (%) 5 | . . . . . . 3 4 6 4 . 8 . . . . . . . . . . . 11 Naked Turns . | . . . . . . . . . . . . . . . . . . . . . . . . Heaviest Build 211 | 10 54 54 48 54 72 84 82 87 101 125 121 124 137 139 145 159 159 165 175 204 211 3 33 Greatest Support 182 | 26 26 20 20 20 42 42 26 26 42 42 48 48 143 143 143 124 130 130 132 182 182 3 90 Greatest Overweight (x) 8 | . 2 2 2 2 2 7 7 3 5 4 8 2 2 . 1 1 1 1 1 1 3 . 8 Average Overweight (x) 1 | . 1 2 2 2 1 2 3 2 2 2 3 2 . . . 1 1 1 1 1 1 . . Largest Inventory Capacity 25 | 8 20 20 20 20 20 20 20 20 20 25 25 25 25 25 25 25 25 25 25 25 25 5 5 Average Capacity 22 | 7 18 20 20 20 20 20 20 20 20 24 25 25 25 25 25 25 25 25 25 25 22 5 5 Most Carried 25 | . 18 20 20 19 20 20 20 20 20 18 24 24 25 25 25 25 25 25 25 25 24 5 5 Average Carried 20 | . 8 19 19 18 18 18 19 19 19 17 21 23 24 24 23 23 24 24 24 24 19 4 4 Final Capacity 25 | 8 20 20 20 20 20 20 20 20 20 25 25 25 25 25 25 25 25 25 25 25 5 5 5 Final Carried 25 | . 18 18 20 19 20 20 20 20 17 18 24 23 25 25 24 24 25 25 23 24 5 5 5 Scrap Engine Consumption 195 | . . . . . . . . . . . 28 13 30 7 8 6 6 12 9 34 42 . . Constructs Created 11 | . . . . . . . . . . . 4 . . . . . . 1 1 3 2 . . Constructs Modified 73 | . . . . . . . . . . . 8 1 16 . 9 3 . . 6 13 17 . . Class Distribution -------------------- 48% | Bothacker-Construct 14% | Mutant 7% | Bothacker-Skirmisher 5% | Skirmisher 4% | Commander-Skirmisher 4% | Bothacker-Mutant 3% | Botlord-Construct 3% | Scavenger-Skirmisher 3% | Commander-Construct Dominant Class ---------------- Mutant | -10/Materials Mutant | -10/Mines Mutant | -10/Exiles Mutant | -9/Mines Skirmisher | -8/Materials Skirmisher | -8/Garrison Scavenger-Skirmisher | -8/Materials Bothacker-Skirmisher | -8/Garrison Bothacker-Skirmisher | -7/Factory Commander-Skirmisher | -7/Storage Commander-Skirmisher | -7/Recycling Bothacker-Construct | -5/Factory Bothacker-Construct | -5/Garrison Bothacker-Construct | -5/Factory Bothacker-Construct | -5/Upper Caves Bothacker-Construct | -5/Upper Caves Bothacker-Construct | -5/Zhirov Bothacker-Construct | -4/Proximity Caves Commander-Construct | -4/Factory Bothacker-Construct | -4/Garrison Bothacker-Construct | -3/Research Mutant | -2/Research Mutant | -2/DSF Resources | -11 -10 -10 -10 -9 -8 -8 -8 -8 -7 -7 -7 -5 -5 -5 -5 -5 -5 -4 -4 -4 -3 -2 -2 ----------- Run | Yrd Mat Min Exi Min Mat Gar Mat Gar Fac Sto Rec Fac Gar Fac Upp Upp Zhi Pro Fac Gar Res Res DSF Matter Collected 9736 | 197 329 150 . 116 325 998 306 292 236 414 144 47 623 327 306 78 250 803 924 1076 1568 127 100 Remotely . | . . . . . . . . . . . . . . . . . . . . . . . . Salvage Created 12007 | . 343 139 . 116 544 717 578 633 393 100 95 124 781 581 399 138 . 1436 1735 1341 1695 . 119 Parts 542 | . 28 13 . 9 32 18 29 30 23 7 2 7 42 23 16 10 . 50 72 46 76 . 9 Haulers Intercepted 4 | . 1 . . . 2 . 1 . . . . . . . . . . . . . . . . Recyclers Shooed 4 | . . . . . . . . . 1 . . . . 1 . . . . . . 2 . . Parts Field Recycled . | . . . . . . . . . . . . . . . . . . . . . . . . Retrieved Matter . | . . . . . . . . . . . . . . . . . . . . . . . . Parts Self-Destructed 66 | . . . . . . . . . . . . . . . 13 3 . 50 . . . . . Prevented . | . . . . . . . . . . . . . . . . . . . . . . . . Parts Restored . | . . . . . . . . . . . . . . . . . . . . . . . . Kills | -11 -10 -10 -10 -9 -8 -8 -8 -8 -7 -7 -7 -5 -5 -5 -5 -5 -5 -4 -4 -4 -3 -2 -2 ------- Run | Yrd Mat Min Exi Min Mat Gar Mat Gar Fac Sto Rec Fac Gar Fac Upp Upp Zhi Pro Fac Gar Res Res DSF Combat Hostiles Destroyed 256 | . 8 11 . . 12 14 16 17 11 2 1 2 17 7 7 5 . 19 31 36 37 . 3 Guns 38 | . . . . . 3 3 4 4 2 . . . 1 3 2 . . . 4 4 8 . . Cannons 118 | . 8 3 . . 5 9 2 10 2 1 . 2 9 4 4 1 . 14 16 16 10 . 2 AOE 90 | . . 8 . . 4 2 10 3 7 1 . . 5 . 1 4 . 4 8 14 18 . 1 Classes Destroyed 21 | . 6 . . 2 1 3 . 3 1 . . . . . . 1 . 2 . . 1 . 1 Worker 7 | . 2 . . . . . 1 . 2 . . . . 1 . . . . . . 1 . . Builder 11 | . 1 . . 1 . . 2 . 1 . . . . . . . . 1 2 . 3 . . Tunneler 3 | . . . . 1 . . . . 1 . . . . . . . . . . . 1 . . Hauler 4 | . 1 . . . 2 . 1 . . . . . . . . . . . . . . . . Recycler 6 | . . . . 1 . . 1 . 2 . . . . 1 . . . . . . 1 . . Mechanic 1 | . . . . . . . . . . . . . . . . . . . . . 1 . . Watcher 2 | . 2 . . . . . . . . . . . . . . . . . . . . . . Swarmer 67 | . 3 9 . . 4 . 2 4 7 . . . 7 . 2 4 . . 9 9 7 . . Cutter 2 | . . . . . . . . . . . . . . . . . . . . . . . 2 Saboteur 2 | . . . . . . . . . . . . . . . . . . 1 . . 1 . . Grunt 89 | . 5 2 . . 5 8 9 5 2 . . . 7 2 3 . . 7 11 11 11 . 1 Brawler 8 | . . . . . . . . 1 . . . . . 1 . . . 4 . 2 . . . Duelist 7 | . . . . . . . . 1 . . . . . . 1 . . 1 1 3 . . . Protector 1 | . . . . . . . . . . . . . . . . . . 1 . . . . . Sentry 34 | . . . . . 3 3 2 3 . 1 . 1 . 1 . . . 5 5 8 2 . . Demolisher 2 | . . . . . . . . . 1 . . . . . . . . . 1 . . . . Specialist 3 | . . . . . . 1 . . . . . . . . . . . . . 2 . . . Hunter 11 | . . . . . . 1 3 . . . . 1 2 1 1 . . . . . 2 . . Programmer 25 | . . . . . . . . 3 1 1 . . . 2 . . . . 4 1 13 . . Behemoth 4 | . . . . . . 1 . . . . . . 1 . . . . 1 . . 1 . . Mutant 1 | . . . . . . . . . . . . . . . . 1 . . . . . . . Best Kill Streak 12 | . 4 3 . 2 4 2 7 5 4 1 1 1 4 3 3 4 . 5 9 8 12 . 2 Combat Bots Only 9 | . 4 3 . . 4 2 6 5 4 1 1 1 4 2 3 4 . 4 7 8 9 . 2 Max Kills in Single Turn 5 | . 2 3 . 1 4 2 4 1 3 1 1 1 3 1 1 3 . 3 4 4 5 . 1 Gunslinging . | . . . . . . . . . . . . . . . . . . . . . . . . Exploded 5 | . . 3 . . 4 2 4 1 3 1 . . 3 . 1 3 . 3 3 4 5 . 1 Melee . | . . . . . . . . . . . . . . . . . . . . . . . . Uniques/NPCs Destroyed 1 | . . . . . . . . . . . 1 . . . . . . . . . . . . 01-MTF (-7/Recycling) Combat | -11 -10 -10 -10 -9 -8 -8 -8 -8 -7 -7 -7 -5 -5 -5 -5 -5 -5 -4 -4 -4 -3 -2 -2 -------- Run | Yrd Mat Min Exi Min Mat Gar Mat Gar Fac Sto Rec Fac Gar Fac Upp Upp Zhi Pro Fac Gar Res Res DSF Hostile Shots Fired 1806 | . 33 23 . . 40 114 62 57 44 84 13 . 97 14 43 14 . 43 132 227 606 . 160 Missed 552 | . 11 6 . . 10 27 17 16 16 30 5 . 30 2 14 9 . 20 41 67 184 . 47 Hits 1254 | . 22 17 . . 30 87 45 41 28 54 8 . 67 12 29 5 . 23 91 160 422 . 113 Melee 19 | . . . . . . . . 2 . . . . . . . . . . 2 2 4 . 9 Projectile 1235 | . 22 17 . . 30 87 45 39 28 54 8 . 67 12 29 5 . 23 89 158 418 . 104 AOE 10 | . . . . . . . . . 8 . . . . . . . . . 1 . 1 . . Critical Strikes 69 | . . . . . 2 5 2 1 1 . . . 2 . 2 . . . 9 7 28 . 10 Part Disruptions 1 | . . . . . . . . . . . . . . . . . . . . . . . 1 Damage Taken 21788 | . 227 211 . 56 447 1824 635 538 684 466 108 . 1418 351 538 46 . 502 1121 1450 7494 . 3672 Core 3257 | . 48 46 . 4 44 95 49 64 43 78 11 . 107 18 38 . . 25 98 162 851 . 1476 Absorbed by Shields 4726 | . . . . . . . . . . . 31 . . 54 . . . 20 838 1537 2246 . . Reduced by Siege Mode 2 | . . . . . . . . . . . . . . . . . . . . 2 . . . Redirected to Shielding 168 | . 8 . . . . . . . . . . . . . . . . 20 . . 140 . . Regen/Repaired (Parts) 3753 | . . . . . . . . . . 47 40 . 627 . 680 159 . 87 88 881 1144 . . Core Remaining (%) 68 | 100 . . . 60 . . . 54 . . 81 . . . . . . 81 . 77 27 . . Volleys Fired 887 | . 38 15 . 4 27 76 45 56 49 28 13 7 75 22 32 7 . 56 77 107 133 . 20 Largest 3 | . 2 2 . 2 3 3 3 2 2 2 2 2 3 2 1 2 . 2 3 3 2 . 3 Hottest 238 | . 90 90 . 90 125 150 216 151 145 99 58 104 202 138 82 134 . 224 205 205 238 . 195 Shots Fired 1338 | . 74 27 . 8 73 139 84 76 62 42 17 11 114 31 32 9 . 61 110 200 142 . 26 Gun 403 | . 7 . . . 47 19 53 11 13 17 4 . 51 14 9 . . 4 46 56 38 . 14 Cannon 780 | . 67 20 . 8 25 114 22 54 36 18 8 8 51 15 20 7 . 47 58 128 64 . 10 Launcher 70 | . . 7 . . 1 2 9 6 4 1 . . 5 . . 2 . 3 4 9 15 . 2 Special 85 | . . . . . . 4 . 5 9 6 5 3 7 2 3 . . 7 2 7 25 . . Kinetic 599 | . 42 12 . 4 52 92 . 9 14 18 4 8 69 28 29 . . 2 26 128 52 . 10 Thermal 538 | . 32 8 . 4 20 41 75 56 22 3 8 . 14 1 . 7 . 49 78 56 50 . 14 Explosive 68 | . . 7 . . 1 2 9 4 4 1 . . 5 . . 2 . 3 4 9 15 . 2 Electromagnetic 48 | . . . . . . . . 2 13 14 . . 19 . . . . . . . . . . Robot Hit Streak 19 | . 9 5 . 7 8 19 11 15 6 8 6 6 11 9 6 8 . 11 16 11 18 . 9 Robot Miss Streak 7 | . 4 4 . 1 3 4 3 3 4 2 1 2 2 2 3 . . 7 4 4 5 . 3 Penetration Max 2 | . . . . . 1 1 . . . . . . . . . . . . 1 . 2 . . Secondary Targets 2 | . . . . . 1 . . . . . . . . . . . . . 1 . . . . Max Gunslinging Chain 1 | . . . . . 1 . . . . . . . . . . . . . 1 . . . . Shots Hit Robots 824 | . 32 12 . 5 40 86 47 34 36 27 13 9 62 21 21 5 . 50 82 129 95 . 18 Core Hits 520 | . 17 14 . 3 21 31 30 22 21 9 2 4 23 11 6 6 . 48 62 65 105 . 20 Critical Kills 4 | . . . . . 1 1 . . . . . . . 1 . . . . . . 1 . . Critical Parts Destroyed 7 | . . . . . . . . . . . . . . 1 . . . . 2 3 1 . . Critical Strikes 27 | . 1 1 . 1 1 3 1 3 . . . . 1 2 . . . . 3 7 3 . . Burn 5 | . . . . . . . 1 3 . . . . . . . . . . 1 . . . . Meltdown 1 | . . . . . . 1 . . . . . . . . . . . . . . . . . Destroy 10 | . . . . . 1 . . . . . . . . 2 . . . . 2 3 2 . . Blast 10 | . 1 1 . 1 . 2 . . . . . . . . . . . . . 4 1 . . Corrupt 1 | . . . . . . . . . . . . . 1 . . . . . . . . . . Melee Attacks . | . . . . . . . . . . . . . . . . . . . . . . . . Impact . | . . . . . . . . . . . . . . . . . . . . . . . . Slashing . | . . . . . . . . . . . . . . . . . . . . . . . . Piercing . | . . . . . . . . . . . . . . . . . . . . . . . . Sneak Attacks . | . . . . . . . . . . . . . . . . . . . . . . . . Combat Hostiles . | . . . . . . . . . . . . . . . . . . . . . . . . Follow-up Attacks . | . . . . . . . . . . . . . . . . . . . . . . . . Damage Inflicted 40640 | . 626 659 . 89 1095 2306 2126 1611 1521 524 193 82 2970 1059 1179 482 . 3493 5191 6781 7671 . 982 Guns 7277 | . 30 . . . 478 307 679 140 190 247 62 . 566 369 228 . . 107 879 913 1708 . 374 Cannons 20864 | . 596 177 . 89 339 1842 226 861 535 230 131 82 1712 690 874 144 . 2986 3414 3555 2121 . 260 Explosions 12389 | . . 482 . . 278 157 1221 610 796 47 . . 692 . 77 338 . 400 898 2313 3739 . 341 Melee . | . . . . . . . . . . . . . . . . . . . . . . . . Ramming 110 | . . . . . . . . . . . . . . . . . . . . . 103 . 7 Kinetic 12481 | . 329 106 . 17 565 1245 . 177 248 265 62 82 1300 1037 1102 . . 31 560 3392 1771 . 192 Thermal 15123 | . 297 71 . 72 252 904 905 824 561 28 131 . 472 22 77 144 . 3122 3733 1076 2058 . 374 Explosive 11824 | . . 482 . . 278 157 1221 503 522 47 . . 645 . . 338 . 340 898 2313 3739 . 341 Electromagnetic 1034 | . . . . . . . . 107 190 184 . . 553 . . . . . . . . . . Impact 68 | . . . . . . . . . . . . . . . . . . . . . . . 68 Slashing . | . . . . . . . . . . . . . . . . . . . . . . . . Piercing . | . . . . . . . . . . . . . . . . . . . . . . . . Highest Corruption 42 | . 2 2 2 2 . . . 2 7 7 2 . . 5 5 . . 2 1 1 42 . 16 Average Corruption 4 | . 1 2 2 2 . . . 1 3 2 2 . . 3 2 . . 2 1 1 16 . 6 Corruption Purged 15 | . . . . . . . . . . 5 . . . . 5 . . . . . 5 . . Corruption Blocked . | . . . . . . . . . . . . . . . . . . . . . . . . Effects 167 | . 9 6 3 5 . . . 4 6 9 16 . . 16 1 . . 7 2 5 74 . 4 Message Errors 38 | . 6 1 1 2 . . . . . 2 3 . . 3 . . . 2 . 1 16 . 1 Matter Fused 40 | . 2 1 . 2 . . . 1 2 3 3 . . 5 . . . 2 . 1 17 . 1 Heat Flow Errors 14 | . . 3 1 . . . . . . . 3 . . 2 . . . . . . 4 . 1 Energy Discharges 21 | . . 1 1 . . . . . . 1 1 . . 2 1 . . 1 1 1 11 . . Parts Rejected 4 | . . . . . . . . . . . . . . . . . . . . . 4 . . Parts Fused 1 | . . . . . . . . . 1 . . . . . . . . . . . . . . Data Loss (minor) 17 | . . . . . . . . 1 1 . 4 . . 2 . . . . 1 1 7 . . Data Loss (major) 12 | . . . . 1 . . . 1 . 1 2 . . 1 . . . 1 . 1 4 . . Misfires 4 | . 1 . . . . . . . 1 1 . . . 1 . . . . . . . . . Alerts 3 | . . . . . . . . 1 . 1 . . . . . . . 1 . . . . . Misdirections 8 | . . . . . . . . . . . . . . . . . . . . . 7 . 1 Weapon Failures 5 | . . . . . . . . . 1 . . . . . . . . . . . 4 . . Overload Shots . | . . . . . . . . . . . . . . . . . . . . . . . . Overflow Damage 1633 | . . 27 . . 4 52 113 69 73 . . . 212 96 172 63 . 15 152 141 444 . . Projectiles 1025 | . . . . . . 8 . 63 51 . . . 185 96 172 . . 15 87 66 282 . . Explosions 608 | . . 27 . . 4 44 113 6 22 . . . 27 . . 63 . . 65 75 162 . . Melee . | . . . . . . . . . . . . . . . . . . . . . . . . Knockbacks 56 | . 3 1 . . . 6 . 3 2 . . 2 2 2 5 . . . . 15 12 . 3 Impact 2 | . . . . . . . . . . . . . . . . . . . . . 2 . . Kinetic 48 | . 3 1 . . . 6 . 2 2 . . 2 2 2 5 . . . . 13 7 . 3 Secondary 6 | . . . . . . . . 1 . . . . . . . . . . . 2 3 . . Self-Inflicted Damage 544 | . . 61 . . . 50 . . 61 . . . 52 . . . . . . 11 273 . 36 Shots 12 | . . 2 . . . 1 . . 2 . . . 2 . . . . . . 1 3 . 1 Rammed 13 | . . . . . . . . . . . . . . . . . . . . . 12 . 1 Targets Rammed 15 | . . . . . . . . . . . . . . . . . . . . . 12 . 3 Kicked 2 | . . . . . . . . . . . . . . . . . . . . . . . 2 Crushed . | . . . . . . . . . . . . . . . . . . . . . . . . Highest Temperature 433 | . 246 360 142 45 284 410 369 239 48 . 235 . 433 314 382 36 . 96 239 195 363 . 171 Average Temperature 101 | . 93 130 74 27 107 133 103 67 19 . 113 . 99 93 117 21 . 35 97 57 123 . 59 Received Heat Transfer 3552 | . 81 24 . . 225 804 270 90 45 84 42 . 496 21 108 . . 65 319 308 390 . 180 Effects 21 | . 3 1 . . 2 4 . 3 . . . . . 4 . . . . . . 4 . . Shutdowns 2 | . . . . . . 2 . . . . . . . . . . . . . . . . . Energy Bleed 6 | . 1 1 . . 1 1 . 1 . . . . . 1 . . . . . . . . . Interference 13 | . 2 . . . 1 1 . 2 . . . . . 3 . . . . . . 4 . . Siege Activations 2 | . . . . . . . . . . . . . . 1 . . . . . 1 . . . Total Turns 24 | . . . . . . . . . . . . . . 11 . . . . . 13 . . . Longest Duration 13 | . . . . . . . . . . . . . . 11 . . . . . 13 . . . Martial Activations . | . . . . . . . . . . . . . . . . . . . . . . . . Shielding Activations . | . . . . . . . . . . . . . . . . . . . . . . . . Robots Disrupted . | . . . . . . . . . . . . . . . . . . . . . . . . Combat Hostiles . | . . . . . . . . . . . . . . . . . . . . . . . . Robots Corrupted 2 | . . . . . . . . . . . . . 2 . . . . . . . . . . Combat Hostiles 2 | . . . . . . . . . . . . . 2 . . . . . . . . . . Parts Fried 7 | . . . . . . . . . 1 . . . 6 . . . . . . . . . . Impact Corruptions . | . . . . . . . . . . . . . . . . . . . . . . . . Robots Melted 10 | . . . . . . 2 . . . . 1 . . . . . . 1 3 2 1 . . Combat Hostiles 8 | . . . . . . . . . . . 1 . . . . . . 1 3 2 1 . . Parts Melted 60 | . 1 . . . . 2 6 3 1 . 2 1 . . . 1 . 13 18 3 9 . . Heat Transferred 22437 | . 629 148 . 148 407 1418 1719 1481 800 37 210 . 50 50 50 185 . 3457 5220 1970 3824 . 634 Parts Sabotaged . | . . . . . . . . . . . . . . . . . . . . . . . . Parts Stolen . | . . . . . . . . . . . . . . . . . . . . . . . . Parts Stripped . | . . . . . . . . . . . . . . . . . . . . . . . . Power Chain Reactions 3 | . . . . . . . . . 1 . . . 1 . 1 . . . . . . . . Alert | -11 -10 -10 -10 -9 -8 -8 -8 -8 -7 -7 -7 -5 -5 -5 -5 -5 -5 -4 -4 -4 -3 -2 -2 ------- Run | Yrd Mat Min Exi Min Mat Gar Mat Gar Fac Sto Rec Fac Gar Fac Upp Upp Zhi Pro Fac Gar Res Res DSF Maximum Alert Level 5 | . . . . . . 3 1 4 3 1 . 1 4 3 . . . . 3 5 3 2 2 Low Security (%) 28 | 100 100 100 . 100 100 29 20 . . 9 100 39 3 . . . . . 32 . . . . Level 1 17 | . . . . . . 33 79 19 . 90 . 60 24 . . . . . 8 . . . 55 Level 2 12 | . . . . . . 25 . 27 69 . . . 7 15 . . . . 19 4 2 100 44 Level 3 31 | . . . . . . 10 . 44 30 . . . 23 84 . . . . 39 47 97 . . Level 4 7 | . . . . . . . . 8 . . . . 41 . . . . . . 20 . . . Level 5 2 | . . . . . . . . . . . . . . . . . . . . 27 . . . High Security . | . . . . . . . . . . . . . . . . . . . . . . . . Max Security . | . . . . . . . . . . . . . . . . . . . . . . . . Peak Influence 1791 | . 180 142 . 5 180 816 398 1148 920 325 107 281 1458 997 . . . . 902 1791 1054 521 496 Initial 1007 | . . 34 . . . 102 397 239 602 295 77 200 154 765 . . . . . 618 1007 521 378 Average 556 | . 59 65 . . 125 389 272 712 682 244 18 217 874 824 . . . . 464 1246 838 515 409 Influence Increases 12001 | . 331 309 . 15 359 934 615 939 807 352 220 351 1384 723 151 68 . 361 1472 1253 1177 4 176 Destroy 0b10 Robot/C 5510 | . 160 220 . . 240 420 320 480 360 120 60 40 555 285 105 60 . 315 585 585 555 . 45 Destroy 0b10 Robot/NC 205 | . 30 . . 15 10 10 25 . 30 5 . . 8 16 . . . 12 16 . 28 . . Destroy Leader 858 | . 36 40 . . 64 30 102 30 50 42 . 20 50 88 16 8 . 8 106 40 120 . 8 Allied During Kill 1175 | . . . . . . 23 . 126 193 97 18 8 77 119 6 . . 26 448 34 . . . Successful Hack 205 | . 14 . . . 7 7 5 34 10 18 36 . 23 13 . . . . 3 9 22 4 . Select Force Hacks 120 | . 30 . . . . . . . . . 90 . . . . . . . . . . . . Disable Machine 567 | . 30 . . . 15 30 30 15 75 45 15 45 15 84 . . . . 48 84 36 . . Anti-Garrison Action 1078 | . . . . . . 250 . 150 . . . . 413 . . . . . . 265 . . . Destroy Structure 1471 | . 1 49 . . 8 74 88 74 59 25 1 38 183 118 . . . . 206 188 296 . 63 Advance Influence 200 | . . . . . . . . . . . . 200 . . . . . . . . . . . Partial Spotted 51 | . . . . . . . . . 15 . . . . . . . . . 12 . 24 . . Lose Combat Pursuer 561 | . 30 . . . 15 90 45 30 15 . . . 60 . 24 . . . 48 48 96 . 60 Influence Decreases 11557 | . 243 314 83 15 202 275 1063 159 1304 804 419 130 147 1289 942 169 . 361 588 346 2041 426 237 Entered New Map 4458 | . . 54 83 . . 55 419 129 546 356 122 . 67 693 331 20 . . . 266 784 406 127 Time Decay 4627 | . 243 250 . 15 192 . 334 . 398 368 251 110 . 486 571 139 . 305 338 . 607 20 . Lost Part 650 | . . 10 . . 10 100 10 10 30 10 . . 30 10 . 10 . . 10 20 280 . 110 Lost Ally 1072 | . . . . . . 120 . 20 180 70 46 20 50 100 40 . . 56 240 60 70 . . Purge Threat 750 | . . . . . . . 300 . 150 . . . . . . . . . . . 300 . . Squads Dispatched 47 | . 1 . . . 3 . 6 . 4 2 . 2 . 4 . . . 1 10 . 12 . 2 Investigation 6 | . 1 . . . 1 . 2 . . 1 . . . . . . . . 1 . . . . Extermination 12 | . . . . . . . . . 1 1 . 1 . 2 . . . . 2 . 5 . . Reinforcement 12 | . . . . . 2 . 1 . . . . 1 . . . . . . 3 . 3 . 2 Assault 12 | . . . . . . . . . 3 . . . . 2 . . . 1 2 . 4 . . Garrison 5 | . . . . . . . 3 . . . . . . . . . . . 2 . . . . Intercept . | . . . . . . . . . . . . . . . . . . . . . . . . Searches Triggered . | . . . . . . . . . . . . . . . . . . . . . . . . Construction Impeded 2 | . . . . . . . . . . . . . . . . . . . 2 . . . . Haulers Reinforced . | . . . . . . . . . . . . . . . . . . . . . . . . Active Scanning Responses . | . . . . . . . . . . . . . . . . . . . . . . . . Cargo Convoy Interrupts 1 | . . . . . . . . . . . . . . . . . . . . . 1 . . Stealth | -11 -10 -10 -10 -9 -8 -8 -8 -8 -7 -7 -7 -5 -5 -5 -5 -5 -5 -4 -4 -4 -3 -2 -2 --------- Run | Yrd Mat Min Exi Min Mat Gar Mat Gar Fac Sto Rec Fac Gar Fac Upp Upp Zhi Pro Fac Gar Res Res DSF Distress Signals 14 | . 1 . . . 1 . 2 . . 1 2 1 1 . . . . 1 2 . 2 . . Communications Jammed 6 | . . . . . . . . . . . . 3 . . . . . . 1 . 2 . . Distress Signals 5 | . . . . . . . . . . . . 3 . . . . . . . . 2 . . Times Spotted 454 | . 11 11 . 3 12 27 23 26 20 14 9 6 39 21 11 5 . 29 50 41 82 . 14 Peak Tracking Total 11 | . 2 3 . 2 4 4 6 5 6 5 3 6 5 4 3 4 . 5 7 11 9 . 7 Tactical Retreats 32 | . 2 . . . 1 4 3 1 1 . . . 4 . 2 . . . 3 2 6 . 3 Traps | -11 -10 -10 -10 -9 -8 -8 -8 -8 -7 -7 -7 -5 -5 -5 -5 -5 -5 -4 -4 -4 -3 -2 -2 ------- Run | Yrd Mat Min Exi Min Mat Gar Mat Gar Fac Sto Rec Fac Gar Fac Upp Upp Zhi Pro Fac Gar Res Res DSF Traps Triggered 32 | . 3 . . 1 1 6 1 . 2 3 . . 3 2 . . . 1 . 7 2 . . Indirectly . | . . . . . . . . . . . . . . . . . . . . . . . . Trap Hack Attempts . | . . . . . . . . . . . . . . . . . . . . . . . . Triggered . | . . . . . . . . . . . . . . . . . . . . . . . . Disarmed . | . . . . . . . . . . . . . . . . . . . . . . . . Reprogrammed . | . . . . . . . . . . . . . . . . . . . . . . . . Reused . | . . . . . . . . . . . . . . . . . . . . . . . . Traps Extracted . | . . . . . . . . . . . . . . . . . . . . . . . . Installed . | . . . . . . . . . . . . . . . . . . . . . . . . Triggered . | . . . . . . . . . . . . . . . . . . . . . . . . Machines | -11 -10 -10 -10 -9 -8 -8 -8 -8 -7 -7 -7 -5 -5 -5 -5 -5 -5 -4 -4 -4 -3 -2 -2 ---------- Run | Yrd Mat Min Exi Min Mat Gar Mat Gar Fac Sto Rec Fac Gar Fac Upp Upp Zhi Pro Fac Gar Res Res DSF Machines Disabled 65 | . 2 . . . 1 7 2 4 5 3 1 3 5 7 1 1 . 3 4 13 3 . . Max in Single Turn 2 | . 1 . . . 1 2 1 1 2 1 . . 1 . 1 1 . 1 1 2 1 . . Garrison Access 2 | . . . . . . . . . 1 . . . . . . . . . 1 . . . . Garrison Relay 13 | . . . . . . 2 . 3 . . . . 4 . . . . . . 4 . . . Phase Generator 2 | . . . . . . 1 . . . . . . . . . . . . . 1 . . . Machines Repaired . | . . . . . . . . . . . . . . . . . . . . . . . . Machines Dismantled . | . . . . . . . . . . . . . . . . . . . . . . . . Machines Sabotaged . | . . . . . . . . . . . . . . . . . . . . . . . . Overloaded Fab Kills . | . . . . . . . . . . . . . . . . . . . . . . . . Hacking | -11 -10 -10 -10 -9 -8 -8 -8 -8 -7 -7 -7 -5 -5 -5 -5 -5 -5 -4 -4 -4 -3 -2 -2 --------- Run | Yrd Mat Min Exi Min Mat Gar Mat Gar Fac Sto Rec Fac Gar Fac Upp Upp Zhi Pro Fac Gar Res Res DSF Machines Accessed 81 | . 4 . 3 1 3 1 4 2 7 6 12 2 3 7 2 . 4 3 7 1 8 1 . Terminals 42 | . 3 . . . 2 1 3 2 4 4 5 1 3 4 . . . 1 2 1 5 1 . Fabricators 4 | . . . . . . . . . . . . . . 1 . . . 1 1 . 1 . . Repair Stations 2 | . . . . . . . . . . 1 . . . . . . . . . . 1 . . Recycling Units 15 | . 1 . . . . . . . 2 1 6 . . 2 . . . 1 2 . . . . Scanalyzers 1 | . . . . . . . . . . . . . . . . . . . . . 1 . . Garrison Access 6 | . . . . . 1 . 1 . 1 . . 1 . . . . . . 2 . . . . Total Hacks 200 | . 11 . 11 1 5 1 14 6 21 13 31 3 6 21 2 . 17 3 13 3 17 1 . Successful 105 | . 4 . 11 1 2 1 6 3 6 4 18 2 2 7 2 . 17 3 5 1 9 1 . Failed 94 | . 7 . . . 3 . 8 3 15 9 13 1 4 14 . . . . 8 2 7 . . Catastrophic 16 | . . . . . 1 . 1 . 3 4 1 . 1 3 . . . . 1 . 1 . . Database Lockouts 1 | . . . . . . . . . . . . . . . . . . . . . 1 . . Manual 68 | . 4 . 1 . 2 . 3 2 8 6 16 1 1 15 . . . . 7 . 2 . . Terminals 123 | . 9 . . . 4 1 12 6 16 10 19 2 6 16 . . . 1 6 3 11 1 . Fabricators 6 | . . . . . . . . . . . . . . 1 . . . 1 2 . 2 . . Repair Stations 4 | . . . . . . . . . . 2 . . . . . . . . . . 2 . . Recycling Units 25 | . 2 . . . . . . . 4 1 10 . . 4 . . . 1 3 . . . . Scanalyzers 2 | . . . . . . . . . . . . . . . . . . . . . 2 . . Garrison Access 7 | . . . . . 1 . 2 . 1 . . 1 . . . . . . 2 . . . . Terminal Hacks 64 | . 2 . 11 1 1 1 3 2 2 2 7 1 2 4 2 . 17 1 . 1 3 1 . Record 15 | . . . 10 . . . . . . . . . . . . . 5 . . . . . . Part Schematic 7 | . . . . . . . . . . . 2 1 . . . . 4 . . . . . . Robot Schematic 1 | . . . . . . . . . . . 1 . . . . . . . . . . . . Robot Analysis 6 | . . . . . . . . . . . 2 . . . . . 4 . . . . . . Prototype ID Bank 4 | . . . . . . . . . . . . . . . . . 4 . . . . . . Open Door 8 | . . . . 1 . 1 . 1 . 2 . . . . 2 . . 1 . . . . . Open DSF 1 | . . . . . . . . . . . . . . . . . . . . . . 1 . Branch Access Points 1 | . . . . . . . . . . . . . . 1 . . . . . . . . . Emergency Access Points 2 | . . . . . . . . . . . . . 1 . . . . . . 1 . . . Terminal Index 1 | . . . . . . . . . . . . . . . . . . . . . 1 . . Unreport Threat 5 | . . . . . . . 2 . 1 . . . . . . . . . . . 2 . . Locate Traps 4 | . 2 . . . . . . . . . . . . 2 . . . . . . . . . Registered Components 2 | . . . . . 1 . 1 . . . . . . . . . . . . . . . . Zone Layout 2 | . . . . . . . . . 1 . . . . 1 . . . . . . . . . Garrison Registry 1 | . . . . . . . . 1 . . . . . . . . . . . . . . . Security Stations 1 | . . . . . . . . . . . . . 1 . . . . . . . . . . Proto ID Catalog 1 | . . . 1 . . . . . . . . . . . . . . . . . . . . Release Object 2 | . . . . . . . . . . . 2 . . . . . . . . . . . . Fabricator Hacks 5 | . . . . . . . . . . . . . . 1 . . . 1 1 . 2 . . Network Status 1 | . . . . . . . . . . . . . . . . . . . 1 . . . . Load Schematic 1 | . . . . . . . . . . . . . . . . . . . . . 1 . . Build 3 | . . . . . . . . . . . . . . 1 . . . 1 . . 1 . . Repair Station Hacks 3 | . . . . . . . . . . 1 . . . . . . . . . . 2 . . Scan Component 2 | . . . . . . . . . . 1 . . . . . . . . . . 1 . . Repair 1 | . . . . . . . . . . . . . . . . . . . . . 1 . . Recycling Unit Hacks 8 | . 1 . . . . . . . . . 5 . . . . . . 1 1 . . . . Report Inventory 1 | . 1 . . . . . . . . . . . . . . . . . . . . . . Retrieve Components 7 | . . . . . . . . . . . 5 . . . . . . 1 1 . . . . Scanalyzer 1 | . . . . . . . . . . . . . . . . . . . . . 1 . . Retrieve Study 1 | . . . . . . . . . . . . . . . . . . . . . 1 . . Garrison Access Hacks 7 | . . . . . 1 . 2 . 1 . . 1 . . . . . . 2 . . . . Unlock Access 4 | . . . . . 1 . 1 . . . . 1 . . . . . . 1 . . . . Seal Access 2 | . . . . . . . . . 1 . . . . . . . . . 1 . . . . Coupler Status 1 | . . . . . . . 1 . . . . . . . . . . . . . . . . Unauthorized Hacks 17 | . 1 . . . . . 1 1 3 1 6 . . 2 . . . . 1 . 1 . . Terminals 13 | . . . . . . . 1 1 3 1 3 . . 2 . . . . 1 . 1 . . Botnet 11 | . . . . . . . 1 1 2 1 3 . . 1 . . . . 1 . 1 . . Operators 2 | . . . . . . . . . 1 . . . . 1 . . . . . . . . . Fabricators . | . . . . . . . . . . . . . . . . . . . . . . . . Repair Stations . | . . . . . . . . . . . . . . . . . . . . . . . . Recycling Units 4 | . 1 . . . . . . . . . 3 . . . . . . . . . . . . Tunnel 4 | . 1 . . . . . . . . . 3 . . . . . . . . . . . . Scanalyzers . | . . . . . . . . . . . . . . . . . . . . . . . . Garrison Access . | . . . . . . . . . . . . . . . . . . . . . . . . Data Cores Recovered . | . . . . . . . . . . . . . . . . . . . . . . . . Used . | . . . . . . . . . . . . . . . . . . . . . . . . Hacking Detections 52 | . 3 . . . 3 . 4 1 6 5 9 1 3 6 . . . . 4 1 6 . . Full Trace Events 7 | . . . . . 1 . 1 . . 1 1 . 1 . . . . . 1 1 . . . Feedback Events . | . . . . . . . . . . . . . . . . . . . . . . . . Feedback Blocked . | . . . . . . . . . . . . . . . . . . . . . . . . Robot Schematics Acquired 1 | . . . . . . . . . . . 1 . . . . . . . . . . . . Robots Built 9 | . . . . . . . . . . . . . . 3 . . . 3 . . 3 . . Authchips 3 | . . . . . . . . . . . . . . 1 . . . 1 . . 1 . . Time 204 | . . . . . . . . . . . . . . 44 . . . 93 . . 67 . . Total Robot Build Rating 45 | . . . . . . . . . . . . . . 12 . . . 21 . . 12 . . Part Schematics Acquired 7 | . . . . . . . . . . . 2 1 . . . . 4 . . . . . . Parts Built . | . . . . . . . . . . . . . . . . . . . . . . . . Authchips . | . . . . . . . . . . . . . . . . . . . . . . . . Time . | . . . . . . . . . . . . . . . . . . . . . . . . Total Part Build Rating . | . . . . . . . . . . . . . . . . . . . . . . . . Part Studies Acquired 1 | . . . . . . . . . . . . . . . . . . . . . 1 . . Parts Repaired 1 | . . . . . . . . . . . . . . . . . . . . . 1 . . Time 68 | . . . . . . . . . . . . . . . . . . . . . 68 . . Parts Recycled . | . . . . . . . . . . . . . . . . . . . . . . . . Recycled Matter . | . . . . . . . . . . . . . . . . . . . . . . . . Retrieved Matter . | . . . . . . . . . . . . . . . . . . . . . . . . Retrieved Components 24 | . . . . . . . . . . . 12 . . . . . . 10 2 . . . . Parts Scanalyzed . | . . . . . . . . . . . . . . . . . . . . . . . . Part Schematics Acquired . | . . . . . . . . . . . . . . . . . . . . . . . . Parts Damaged . | . . . . . . . . . . . . . . . . . . . . . . . . Bothacking | -11 -10 -10 -10 -9 -8 -8 -8 -8 -7 -7 -7 -5 -5 -5 -5 -5 -5 -4 -4 -4 -3 -2 -2 ------------ Run | Yrd Mat Min Exi Min Mat Gar Mat Gar Fac Sto Rec Fac Gar Fac Upp Upp Zhi Pro Fac Gar Res Res DSF Used RIF Installer 4 | . . . . . . 1 . 1 . . . . 1 . . . . . . 1 . . . Threat Obfuscator 1 | . . . . . . . . . . . . . 1 . . . . . . . . . . Signal Jammer 1 | . . . . . . . . 1 . . . . . . . . . . . . . . . Watcher Feeds 1 | . . . . . . . . . . . . . . . . . . . . 1 . . . Robots Hacked 56 | . . . . . . 4 . 2 7 5 1 2 5 1 3 . . 6 2 6 12 . . Non-combat 10 | . . . . . . 1 . . 4 2 1 . . 1 . . . . . . 1 . . Combat 46 | . . . . . . 3 . 2 3 3 . 2 5 . 3 . . 6 2 6 11 . . Robot Hacks Applied 56 | . . . . . . 4 . 2 7 5 1 2 5 1 3 . . 6 2 6 12 . . parse_system 6 | . . . . . . 1 . . . 3 1 . . . . . . 1 . . . . . find_chute 1 | . . . . . . . . . 1 . . . . . . . . . . . . . . find_fabricator 2 | . . . . . . . . . . . . . . 1 . . . . . . 1 . . find_recycling 1 | . . . . . . . . . 1 . . . . . . . . . . . . . . map_route 1 | . . . . . . . . . 1 . . . . . . . . . . . . . . emergency_deploy 2 | . . . . . . . . . . . . . . . . . . . . . 2 . . find_shortcuts 2 | . . . . . . . . . . . . 1 . . . . . 1 . . . . . spike_heat 1 | . . . . . . . . . . . . . . . . . . . . . 1 . . overload_power 1 | . . . . . . . . . . . . . . . . . . . . . 1 . . amplify_resonance 6 | . . . . . . . . . . . . . . . . . . 2 . 1 3 . . disable_weapons 4 | . . . . . . . . 1 . . . . 1 . 1 . . . . 1 . . . reboot_system 1 | . . . . . . . . . . . . . . . . . . . . 1 . . . overwrite_iff 12 | . . . . . . 1 . . 3 2 . . 1 . . . . 1 2 1 1 . . streamctrl_high 2 | . . . . . . 2 . . . . . . . . . . . . . . . . . formatsys_low 1 | . . . . . . . . . 1 . . . . . . . . . . . . . . formatsys_high 13 | . . . . . . . . 1 . . . 1 3 . 2 . . 1 . 2 3 . . Relay Couplers Released 54 | . . . . . . 9 . 13 . . . . 15 . . . . . . 17 . . . Machine Destruction 54 | . . . . . . 9 . 13 . . . . 15 . . . . . . 17 . . . Attached 24 | . . . . . . 2 . 1 2 1 . 1 5 . 1 . . 1 . 3 7 . . Fabnet Peak Effective % . | . . . . . . . . . . . . . . . . . . . . . . . . Robots Rewired 31 | . . . . . . 3 . 9 . . 4 . . . . 3 . 12 . . . . . Allies Hacked 3 | . . . . . . . . 3 . . . . . . . . . . . . . . . Hacks Repelled . | . . . . . . . . . . . . . . . . . . . . . . . . Allies | -11 -10 -10 -10 -9 -8 -8 -8 -8 -7 -7 -7 -5 -5 -5 -5 -5 -5 -4 -4 -4 -3 -2 -2 -------- Run | Yrd Mat Min Exi Min Mat Gar Mat Gar Fac Sto Rec Fac Gar Fac Upp Upp Zhi Pro Fac Gar Res Res DSF Total Allies 84 | . . . . . . 7 . 12 4 12 4 1 6 3 2 3 . 17 2 4 7 . . Largest Group 11 | . . . . . . 3 . 9 9 11 10 5 4 4 1 3 3 10 11 1 4 . . Highest-Rated Group 450 | . . . . . . 79 . 230 230 221 212 150 268 268 29 87 87 403 450 49 124 . . Highest-Rated Ally 95 | . . . . . . 39 . 40 40 32 40 41 95 95 29 29 29 49 48 49 64 . . Total Orders 5 | . . . . . . . . . . 2 . . . . . . . . . . 3 . . FOLLOW 2 | . . . . . . . . . . 1 . . . . . . . . . . 1 . . AID 1 | . . . . . . . . . . 1 . . . . . . . . . . . . . EXPLORE 2 | . . . . . . . . . . . . . . . . . . . . . 2 . . Ally Attacks 486 | . . . . . . 30 . 36 49 38 55 11 42 65 7 . . 37 77 29 10 . . Total Damage 13387 | . . . . . . 1102 . 628 792 664 767 1070 1493 2713 96 . . 1065 1871 836 290 . . Kills 85 | . . . . . . 7 . 8 8 5 9 3 14 14 . . . 4 10 3 . . . Allies Corrupted 1 | . . . . . . . . . . . . . . . 1 . . . . . . . . Allies Melted 3 | . . . . . . . . . 1 . . . . 1 . . . . 1 . . . . Turrets Deployed 3 | . . . . . . . . . . . . . 1 . . . . 1 1 . . . . Intel | -11 -10 -10 -10 -9 -8 -8 -8 -8 -7 -7 -7 -5 -5 -5 -5 -5 -5 -4 -4 -4 -3 -2 -2 ------- Run | Yrd Mat Min Exi Min Mat Gar Mat Gar Fac Sto Rec Fac Gar Fac Upp Upp Zhi Pro Fac Gar Res Res DSF Active Infowar (turns) 967 | . . . . . 454 513 . . . . . . . . . . . . . . . . . Structural 347 | . . . . . . 347 . . . . . . . . . . . . . . . . . T.N.C. 620 | . . . . . 454 166 . . . . . . . . . . . . . . . . . Robot Analysis Total 6 | . . . . . . . . . . . 2 . . . . . 4 . . . . . . Derelict Logs Recovered 7 | . . 2 . . . . . . . . . . . . 2 2 . 1 . . . . . Drone Launches 5 | . . . . . . . . . . . . . . . . . . . . . 5 . . Drone Recoveries 3 | . . . . . . . . . . . . . . . . . . . . . 3 . . Exploration | -11 -10 -10 -10 -9 -8 -8 -8 -8 -7 -7 -7 -5 -5 -5 -5 -5 -5 -4 -4 -4 -3 -2 -2 ------------- Run | Yrd Mat Min Exi Min Mat Gar Mat Gar Fac Sto Rec Fac Gar Fac Upp Upp Zhi Pro Fac Gar Res Res DSF Turns Passed 21432 | 40 845 731 273 274 472 1347 753 969 959 849 1453 232 2062 1269 1722 706 216 1302 1060 1519 1975 41 363 Spaces Moved 12763 | 35 552 576 244 201 299 676 377 455 601 455 881 159 1177 706 1051 497 159 890 614 817 1117 66 158 Core 250 | 2 . . . . . . . . . . . . . . . . . . . . 65 66 117 Treads 2817 | . . . . . . . . . . . . . 873 706 530 . . . . 507 201 . . Legs 1042 | . . . . . . . . . . . 280 159 304 . 67 . . . . 69 122 . 41 Wheels 5156 | 33 552 576 244 201 299 676 377 455 601 455 601 . . . . . . . . . 86 . . Hover 800 | . . . . . . . . . . . . . . . 454 313 . . . . 33 . . Flight 2698 | . . . . . . . . . . . . . . . . 184 159 890 614 241 610 . . Fastest Speed 50 | 50 90 110 110 110 95 108 120 120 108 108 120 130 98 156 129 129 114 114 114 86 50 50 50 Average Speed 130 | 89 104 110 110 110 109 124 141 134 121 134 147 130 144 156 155 129 123 114 124 136 129 50 75 Slowest Speed 450 | 100 110 110 110 110 120 185 185 135 175 150 210 130 188 156 203 129 129 114 129 167 369 50 450 Overloaded Moves . | . . . . . . . . . . . . . . . . . . . . . . . . Propulsion Burnouts . | . . . . . . . . . . . . . . . . . . . . . . . . Robots Hopped 1 | . . . . . . . . . . . . . . . . . . . . . 1 . . Potential Cave-ins 3 | . . . . . . . . . . . . . . . . . . . 3 . . . . Cave-ins Triggered 1 | . . . . . . . . . . . . . . . . . . . . . 1 . . Teleports 1 | . . . . . . . . . . . . . . . . . . . . . 1 . . Exploration Rate (%) 53 | 4 77 99 62 44 36 67 28 59 21 50 98 6 97 20 95 74 60 59 16 78 41 2 83 Regions Visited 23 Branch Regions 9 Pre-discovered Areas 10 | . 1 1 . . . . . . . . 3 . . . 1 1 3 . . . . . . Known Exits Taken 8 | . . . . . 1 . 1 . . . . 1 . 1 . . . 1 1 . 1 1 . Unknown Exits Taken 11 | 1 1 1 1 1 . . . . 1 1 1 . . . 1 1 1 . . . . . . Scrap Searched 13 | . . 2 . . . . . . . . . . . . 3 5 . 3 . . . . . Spaces Dug 77 | . . . . . . . 5 . 5 1 . . 8 3 . . . . 51 1 3 . . Terrain Destroyed 1064 | . . 69 . . 9 83 110 28 60 23 1 . 68 10 23 28 . 34 141 141 209 . 27 Melee . | . . . . . . . . . . . . . . . . . . . . . . . . Projectile 193 | . . . . . 4 . 13 1 13 6 1 . 11 10 15 2 . 7 59 16 30 . 5 AOE 866 | . . 69 . . 5 83 97 27 47 17 . . 57 . 8 26 . 27 82 125 174 . 22 Terrain Rammed . | . . . . . . . . . . . . . . . . . . . . . . . . Walls Destroyed . | . . . . . . . . . . . . . . . . . . . . . . . . Machines Disabled . | . . . . . . . . . . . . . . . . . . . . . . . . Actions | -11 -10 -10 -10 -9 -8 -8 -8 -8 -7 -7 -7 -5 -5 -5 -5 -5 -5 -4 -4 -4 -3 -2 -2 --------- Run | Yrd Mat Min Exi Min Mat Gar Mat Gar Fac Sto Rec Fac Gar Fac Upp Upp Zhi Pro Fac Gar Res Res DSF Total 16323 | 40 748 644 251 247 386 1057 518 742 767 652 1025 174 1441 845 1105 554 179 1120 807 1051 1517 74 379 Wait 1711 | . 118 41 . 30 21 209 64 61 80 124 72 3 150 98 14 30 1 83 90 83 177 1 161 Move 12741 | 34 551 575 243 200 299 675 376 454 600 454 880 159 1176 705 1050 496 158 889 614 816 1114 65 158 Hop 1 | . . . . . . . . . . . . . . . . . . . . . 1 . . Pick Up 128 | . 22 2 3 4 11 12 2 8 8 3 6 1 13 2 . 1 5 2 3 6 5 3 6 Fast Attach 118 | 6 8 . . 1 7 6 13 4 8 8 3 1 3 7 2 1 5 2 5 2 9 1 16 Attach 85 | . 1 2 . 2 4 11 3 7 4 2 . 1 3 1 1 2 1 3 2 4 23 1 7 Detach 25 | . . . 2 . . 4 2 1 . . 1 . . . 1 2 . 2 . 1 6 . 3 Swap 90 | . 2 7 . 1 5 9 2 5 7 1 3 1 10 3 3 1 1 4 6 8 10 . 1 Drop 164 | . 8 2 3 5 12 14 11 13 11 8 8 1 10 7 2 2 8 2 10 9 11 3 4 Fire 887 | . 38 15 . 4 27 76 45 56 49 28 13 7 75 22 32 7 . 56 77 107 133 . 20 Melee . | . . . . . . . . . . . . . . . . . . . . . . . . Ram 14 | . . . . . . . . . . . . . . . . . . . . . 13 . 1 Kick 2 | . . . . . . . . . . . . . . . . . . . . . . . 2 Crush . | . . . . . . . . . . . . . . . . . . . . . . . . Escape Stasis 62 | . . . . . . 8 . . . 24 . . . . . . . . . 15 15 . . Rewire 295 | . . . . . . 33 . 133 . . 39 . 1 . . 12 . 77 . . . . . Trap . | . . . . . . . . . . . . . . . . . . . . . . . . Miscellaneous . | . . . . . . . . . . . . . . . . . . . . . . . . Route ------- -11/Scrapyard -10/Materials (discovered 3 exits: [*Mat] / [*Min x2]) -10/Mines (discovered 3 exits: [*Mat x2] / *Exi) -10/Exiles -9/Mines -8/Materials (discovered 2 exits: *Fac / Gar) -8/Garrison -8/Materials -8/Garrison (discovered 3 exits: *Fac x3) -7/Factory (discovered 3 exits: [*Fac] / *Sto / [Low]) -7/Storage (discovered 2 exits: [*Fac] / *Rec) -7/Recycling -5/Factory (discovered 2 exits: *Fac / Gar) -5/Garrison (discovered 3 exits: *Fac x3) -5/Factory (discovered 4 exits: *Fac x2 / *Upp x2) -5/Upper Caves -5/Upper Caves (discovered 2 exits: *Fac / *Zhi) -5/Zhirov -4/Proximity Caves -4/Factory (discovered 2 exits: Upp / Gar) -4/Garrison (discovered 2 exits: *Res x2) -3/Research (discovered 2 exits: *Res x2) -2/Research -2/DSF (discovered 1 exit: [*Gar]) History --------- Turn | Location | Event 8 | -11/Scrapyard | Discovered new exit (range 15) 41 | -11/Scrapyard | Entered Materials 174 | -10/Materials | Discovered new exit (range 10) 291 | -10/Materials | Discovered new exit (range 7) 318 | -10/Materials | Build established: Mutant 726 | -10/Materials | Discovered new exit (range 16) 886 | -10/Materials | Entered Mines 896 | -10/Mines | YI-UF0 nonchalantly dropped a Grenade Launcher on the ground 1019 | -10/Mines | Found a damaged Exp. Sensor Array with a note attached 1021 | -10/Mines | Found Prototype Device 1106 | -10/Mines | Learned location of Zion (-6) 1143 | -10/Mines | Discovered new exit (range 10) 1181 | -10/Mines | Discovered new exit (range 12) 1343 | -10/Mines | Learned Materials terminal intel 1613 | -10/Mines | Deemed a non-threat by the Exiles lab entrance 1613 | -10/Mines | Discovered new exit (range 5) 1617 | -10/Mines | Entered Exiles 1646 | -10/Exiles | Met 8R-AWN 1666 | -10/Exiles | Met EX-HEX 1699 | -10/Exiles | Met EX-BIN 1716 | -10/Exiles | Aligned with FarCom system 1717 | -10/Exiles | Given EX-Vault access code 1743 | -10/Exiles | Opened EX-Vault 1754 | -10/Exiles | Found Deploy-a-Sentry 1756 | -10/Exiles | Found Deploy-a-Sentry 1758 | -10/Exiles | Found Deploy-a-Sentry 1781 | -10/Exiles | Warned to stay clear of 0b10 Research branches 1813 | -10/Exiles | Met EX-DEC 1878 | -10/Exiles | Discovered new exit (range 12) 1890 | -10/Exiles | Left Exiles lab with Deploy-a-Sentry 1890 | -10/Exiles | Entered Mines 1911 | -9/Mines | Assembled infested the area 1916 | -9/Mines | Assisted by a Guerilla fighting off Assembled 2118 | -9/Mines | Met a Derelict who couldn't figure out how to use a Trap Extractor 2138 | -9/Mines | Discovered new exit (range 15) 2164 | -9/Mines | Entered Materials 2164 | -8/Materials | Evolved 4 slots: Propulsion x1, Utility x2, Weapon x1 2165 | -8/Materials | Loaded intel: 12 terminal locations 2580 | -8/Materials | Discovered new exit (range 11) 2636 | -8/Materials | Identified exit to Garrison 2636 | -8/Materials | Entered Garrison 2681 | -8/Garrison | Build established: Skirmisher 2742 | -8/Garrison | Rescued a captive Derelict 2769 | -8/Garrison | Installed Relay Interface Framework 2793 | -8/Garrison | Spotted B-75 Beast 2835 | -8/Garrison | Destroyed B-75 Beast 2860 | -8/Garrison | Lost 5 parts (1p2n2u) 2873 | -8/Garrison | Phase Generator disabled 2918 | -8/Garrison | Found Launcher Loader 3142 | -8/Garrison | Triggered checkpoint 3174 | -8/Garrison | Garrison Relay disabled 3484 | -8/Garrison | Triggered checkpoint 3667 | -8/Garrison | Lost 3 allies 3684 | -8/Garrison | Discovered new exit (range 10) 3748 | -8/Garrison | Garrison Relay disabled 3782 | -8/Garrison | Build established: Mutant 3864 | -8/Garrison | Triggered checkpoint 3983 | -8/Garrison | Entered Materials 4288 | -8/Materials | Garrison activated, responded to threat 4641 | -8/Materials | Build established: Scavenger-Skirmisher 4718 | -8/Materials | Identified exit to Garrison 4736 | -8/Materials | Entered Garrison 4758 | -8/Garrison | Triggered checkpoint 4820 | -8/Garrison | Garrison Relay disabled 4921 | -8/Garrison | Discovered new exit (range 62) 4921 | -8/Garrison | Discovered new exit (range 43) 4921 | -8/Garrison | Discovered new exit (range 68) 5027 | -8/Garrison | Garrison Relay disabled 5118 | -8/Garrison | Build established: Bothacker-Skirmisher 5274 | -8/Garrison | Expanded RIF knowledge: Signal Jamming 5346 | -8/Garrison | P-60 Hacker assimilated allied Pest 3c 5396 | -8/Garrison | Triggered checkpoint 5402 | -8/Garrison | Triggered checkpoint 5549 | -8/Garrison | Garrison Relay disabled 5555 | -8/Garrison | Triggered checkpoint 5657 | -8/Garrison | Rescued a captive Derelict 5659 | -8/Garrison | Rescued a captive Derelict 5705 | -8/Garrison | Entered Factory 5705 | -7/Factory | Accompanied by 9 allies 5705 | -7/Factory | Evolved 2 slots: Utility x2 6105 | -7/Factory | First assault squad dispatched 6155 | -7/Factory | Lost 3 allies 6232 | -7/Factory | Build established: Bothacker-Tank 6337 | -7/Factory | Discovered new exit (range 38) 6473 | -7/Factory | Discovered new exit (range 15) 6618 | -7/Factory | Discovered new exit (range 9) 6629 | -7/Factory | Build established: Bothacker-Skirmisher 6649 | -7/Factory | Lost 3 parts (2n1w) 6664 | -7/Factory | Entered Storage 6664 | -7/Storage | Accompanied by 1 ally 6684 | -7/Storage | Met 01-MTF 7009 | -7/Storage | Assisted by bots powering up and referring to "LRC-V3" 7202 | -7/Storage | Discovered new exit (range 8) 7326 | -7/Storage | Build established: Commander-Skirmisher 7403 | -7/Storage | Discovered new exit (range 9) 7513 | -7/Storage | Entered Recycling 7513 | -7/Recycling | Accompanied by 9 allies (01-MTF) 8081 | -7/Recycling | Scanned before Scraplab entrance 8090 | -7/Recycling | Destroyed 01-MTF 8095 | -7/Recycling | Found 01-MTF's Shockpuncher 8106 | -7/Recycling | Found Prototype Energy Gun 8107 | -7/Recycling | Identified KN-7UR's Autopenetrator 8116 | -7/Recycling | Entered Scraplab 8123 | -7/Recycling | Lost 3 allies 8127 | -7/Recycling | Discovered new exit (range 2) 8159 | -7/Recycling | Angered Scraplab inhabitants 8161 | -7/Recycling | Found Prototype Device 8161 | -7/Recycling | Identified Scrap Engine 8359 | -7/Recycling | Discovered new exit (range 16) 8768 | -7/Recycling | Build established: Bothacker-Construct 8966 | -7/Recycling | Entered Factory 8966 | -5/Factory | Accompanied by 5 allies 8966 | -5/Factory | Evolved 4 slots: Power x1, Propulsion x1, Utility x1, Weapon x1 9109 | -5/Factory | Lost 3 allies 9112 | -5/Factory | Discovered new exit (range 7) 9198 | -5/Factory | Identified exit to Garrison 9198 | -5/Factory | Entered Garrison 9198 | -5/Garrison | Accompanied by 2 allies 9218 | -5/Garrison | Learned Factory security intel 9244 | -5/Garrison | Triggered checkpoint 9298 | -5/Garrison | Garrison Relay disabled 9302 | -5/Garrison | Lost 3 allies 9394 | -5/Garrison | Triggered checkpoint 9413 | -5/Garrison | Spotted B-75 Beast 9543 | -5/Garrison | Destroyed B-75 Beast 9620 | -5/Garrison | DAS Turret deployed 9764 | -5/Garrison | Triggered checkpoint 9775 | -5/Garrison | Triggered checkpoint 9956 | -5/Garrison | Discovered new exit (range 12) 10020 | -5/Garrison | Triggered checkpoint 10054 | -5/Garrison | Garrison Relay disabled 10260 | -5/Garrison | Triggered checkpoint 10268 | -5/Garrison | Garrison Relay disabled 10430 | -5/Garrison | Triggered checkpoint 10433 | -5/Garrison | Discovered new exit (range 15) 10753 | -5/Garrison | Expanded RIF knowledge: Threat Obfuscation 10788 | -5/Garrison | Triggered checkpoint 10806 | -5/Garrison | Garrison Relay disabled 10841 | -5/Garrison | Discovered new exit (range 15) 10848 | -5/Garrison | Found embedded Infiltrators 10930 | -5/Garrison | Triggered checkpoint 11235 | -5/Garrison | Identified exit to Factory 11260 | -5/Garrison | Entered Factory 11260 | -5/Factory | Accompanied by 4 allies 11803 | -5/Factory | Discovered new exit (range 12) 11896 | -5/Factory | Discovered new exit (range 11) 11903 | -5/Factory | Identified exit to Upper Caves 12187 | -5/Factory | Fabricated L-41 Fighter (x3) 12274 | -5/Factory | Discovered new exit (range 11) 12338 | -5/Factory | Lost 3 allies 12460 | -5/Factory | First assault squad dispatched 12529 | -5/Factory | Entered Upper Caves 12925 | -5/Upper Caves | Learned Factory garrison access intel 13171 | -5/Upper Caves | Discovered new exit (range 13) 13274 | -5/Upper Caves | Learned location of Warlord (-4) 13926 | -5/Upper Caves | Found DCF Scrap (15 items) 14251 | -5/Upper Caves | Entered another Upper Caves area 14261 | -5/Upper Caves | Discovered new exit (range 7) 14277 | -5/Upper Caves | Learned 12 Factory zone layouts 14483 | -5/Upper Caves | Attacked by a delusional Derelict stockpiling Unaware 14683 | -5/Upper Caves | Entered a destroyed Warlord outpost 14764 | -5/Upper Caves | Discovered new exit (range 8) 14957 | -5/Upper Caves | Entered Zhirov 14957 | -5/Zhirov | Accompanied by 3 allies 14957 | -5/Zhirov | Discovered new exit (range 3) 14981 | -5/Zhirov | Met Zhirov 15010 | -5/Zhirov | Learned location of Quarantine (-2) 15010 | -5/Zhirov | Learned location of Testing (-3) 15010 | -5/Zhirov | Learned location of Command (-1) 15018 | -5/Zhirov | Zhirov requested help retrieving the SGEMP Prototype 15038 | -5/Zhirov | Found Alien Artifact 15038 | -5/Zhirov | Identified Integrated Dissipator 15038 | -5/Zhirov | Installed Integrated Dissipator, increased core heat dissipation (+20) 15056 | -5/Zhirov | Found Alien Artifact 15173 | -5/Zhirov | Entered Proximity Caves 15173 | -4/Proximity Caves | Accompanied by 3 allies 15188 | -4/Proximity Caves | Identified exit to Factory 15245 | -4/Proximity Caves | Attracted the attention of an 0b10 checkpoint 15522 | -4/Proximity Caves | Spotted B-86 Titan 15591 | -4/Proximity Caves | Attracted the attention of an 0b10 outpost 15754 | -4/Proximity Caves | DAS Turret deployed 15764 | -4/Proximity Caves | Snuck into a huge 0b10 base via the rear entrance 15991 | -4/Proximity Caves | Lost 5 allies 16045 | -4/Proximity Caves | Spotted B-86 Titan 16053 | -4/Proximity Caves | Destroyed B-86 Titan 16259 | -4/Proximity Caves | Fabricated L-61 Swordsman (x3) 16475 | -4/Proximity Caves | Entered Factory 16475 | -4/Factory | Accompanied by 10 allies 16475 | -4/Factory | Evolved 2 slots: Propulsion x1, Utility x1 16476 | -4/Factory | Identified exit to Upper Caves 16477 | -4/Factory | Loaded intel: 4 garrison access locations 16744 | -4/Factory | Build established: Commander-Construct 16975 | -4/Factory | First assault squad dispatched 17198 | -4/Factory | Destroyed 7 combat bots 17204 | -4/Factory | Lost 7 allies 17333 | -4/Factory | DAS Turret deployed 17364 | -4/Factory | Garrison activated, responded to threat 17372 | -4/Factory | Build established: Bothacker-Construct 17535 | -4/Factory | Identified exit to Garrison 17535 | -4/Factory | Entered Garrison 17560 | -4/Garrison | Expanded RIF knowledge: Watcher Feeds 17609 | -4/Garrison | Phase Generator disabled 17660 | -4/Garrison | Triggered checkpoint 17696 | -4/Garrison | Garrison Relay disabled 17866 | -4/Garrison | Triggered checkpoint 17884 | -4/Garrison | Spotted B-86 Titan 17907 | -4/Garrison | Allies destroyed B-86 Titan 17951 | -4/Garrison | Triggered checkpoint 17971 | -4/Garrison | Triggered checkpoint 18132 | -4/Garrison | Triggered checkpoint 18157 | -4/Garrison | Garrison Relay disabled 18205 | -4/Garrison | Discovered new exit (range 10) 18326 | -4/Garrison | Triggered checkpoint 18355 | -4/Garrison | Destroyed 7 combat bots 18478 | -4/Garrison | Destroyed 8 combat bots 18479 | -4/Garrison | Discovered new exit (range 16) 18519 | -4/Garrison | H-XX Assembler disabled 18672 | -4/Garrison | Rescued a captive Derelict 18673 | -4/Garrison | Rescued a captive Derelict 18835 | -4/Garrison | Garrison Relay disabled 18973 | -4/Garrison | Triggered checkpoint 19054 | -4/Garrison | Entered Research 19054 | -3/Research | Evolved 2 slots: Propulsion x1, Utility x1 19134 | -3/Research | Build established: Botlord-Construct 19230 | -3/Research | Central database locked down 19304 | -3/Research | Discovered new exit (range 25) 19554 | -3/Research | First assault squad dispatched 19797 | -3/Research | Repaired Adv. Force Field 19962 | -3/Research | Build established: Bothacker-Construct 19999 | -3/Research | Found Fusion Bomb Launcher 20282 | -3/Research | Cargo convoy interrupted 20295 | -3/Research | Spotted B-86 Titan 20400 | -3/Research | Destroyed B-86 Titan 20456 | -3/Research | System corruption reached 10% 20475 | -3/Research | Crushed by falling debris 20492 | -3/Research | Destroyed 9 combat bots 20506 | -3/Research | Lost 5 parts (1p4u) 20530 | -3/Research | Identified Transdimensional Reconstructor 20530 | -3/Research | Warped through subspace 20549 | -3/Research | System corruption reached 30% 20621 | -3/Research | Lost 10 parts (1p2n3u4w) 20631 | -3/Research | Core integrity fell below 50% 20761 | -3/Research | Lost 3 parts (1n1u1w) 20917 | -3/Research | Lost 3 parts (1u2w) 20982 | -3/Research | Fabricated B-48 Gladiator? 21012 | -3/Research | Discovered new exit (range 30) 21028 | -3/Research | Identified exit to Research 21029 | -3/Research | Entered another Research area 21029 | -2/Research | Accompanied by 1 ally 21029 | -2/Research | Evolved 2 slots: Utility x2 21047 | -2/Research | Lost 4 parts (2n2u) 21070 | -2/Research | Identified exit to DSF 21070 | -2/Research | Entered DSF 21136 | -2/DSF | Additional patrols routed to DSF 21373 | -2/DSF | Core integrity fell below 50% 21384 | -2/DSF | Lost 3 parts (2u1w) 21395 | -2/DSF | System corruption reached 10% 21398 | -2/DSF | Core integrity fell below 20% 21403 | -2/DSF | Build established: Mutant 21417 | -2/DSF | Discovered new exit (range 14) 21433 | -2/DSF | Destroyed by X-87 Electro with Compact HERF Cannon Last Messages --------------- 21405_ Acquired Cmb. Linear Gravjet. 21416_ Imp. Armor Integrity Analyzer destroyed. 21417_ EXIT=FOUND 21418_ C-30 ARC bursts open, deploying its payload. 21418_ H-88 Terminator unfolds itself. 21418_ Penetrated by Slug. 21422_ System corrupted: Centrium Leg stumbles. 21422_ Slug penetrates Wall. 21425_ Penetrated by Slug. 21425_ Centrium Leg destroyed. 21426_ Slug penetrates Wall. 21427_ Wall collapses. 21428_ Slug penetrates Wall. 21431_ Kicked H-88 Terminator. 21431_ Penetrated by Slug. 21431_ Centrium Leg destroyed. 21431_ Slug penetrates Wall. 21432_ Kicked H-88 Terminator. 21433_ Penetrated by Slug. Map ----- +----------------------------------------------------+ | | | | | | | | | | | | | | | | | | | | | | | | | ????????????????????????????????????? | | ????????????????????????????????????? | | ????????????????????????????????????? | | ????????????????????????????????????? | | ????????????????????????????????????? | | ?????????????????????????"??????????? | | ???????????????????????##"###???????? | | ???????????????????????#"""""#??????? | | ???????????????????????#"""""#??????? | | ??????????????????????? <""##?????? | | ????????? ??????????? % """??????? | | ?????????# #?????????? ""???????? | | ????????## ##?????????#hh#????????? | | ???????? ???????###@ ##???????? | | ????????? ????????#!! !#???????? | | ????????? ????????#!! !#???????? | | ???????### ###??????##; ##???????? | | ???????#!! !!#??????#!! #???????? | | ???????#!! !!#??????#!! #???????? | | ??#?????!! !!???????#!! #???????? | | ###"####?# #?########## ###??????? | | = "!!!### ###= =# ##x #??????? | | ==%!!!## ## ==# ##g #??????? | | Hgx !!#??????? | | % % % g !!"#?????? | | !!##?????? | | !!!" [["# ##!!!#!!!## #??????? | | !!!# [### ###!!!#!!!## #??????? | | ########?# #################??????? | | #???????!! ]]?????????????????????? | | #??????#!! ]]#????????????????????? | | #??????#!! ]]#????????????????????? | | #??????### ###????????????????????? | | ###?????? #????????????????????? | | ## ##???? #????????????????????? | | ###!#### #????????????????????? | | # ! ! #????????????????????? | | # # ###????????????????????? | +----------------------------------------------------+ Best States ------------- Heat Dissipation 90 Coolant Potential 80 Energy Generation 63 Energy Capacity 1977 Matter Stores 300 Matter Capacity 300 Sight Range 16 Terrain Scan Density 10 Armor Coverage 825 Core Shielding 20 Power Shielding 90 Weapon Cycling 25 Phase Shifting 15 Evasion (%) 55 Targeting Accuracy 6 Melee Accuracy 6 Armor Integrity Analysis 40 Recoil Reduction 4 Matter Filtering 30 Offensive Hacking 24 Defensive Hacking 10 Relay Coupler Types 4 Relay Coupler Value 56 Authchip Count 5 Item Schematics ----------------- Gauss Cannon | -7/Recycling | Hacked Adv. Terrain Scanner | -7/Recycling | Hacked Com. HERF Cannon | -5/Factory | Hacked Assault Drone Bay | -5/Zhirov | Free Exp. Heat Sink | -5/Zhirov | Free Exp. Optical Array | -5/Zhirov | Free Imp. Arc Thrower | -5/Zhirov | Free Robot Schematics ------------------ B-48 Gladiator | -7/Recycling | Hacked Fabricated ------------ L-41 Fighter | x3 | -5/Factory | Preloaded, Authchip L-61 Swordsman | x3 | -4/Proximity Caves | Preloaded, Authchip B-48 Gladiator | x3 | -3/Research | Authchip Repaired ---------- Adv. Force Field | 32% | -3/Research Studied --------- Imp. Remote Datajack | -3/Research | Hacked Alien Tech Used ----------------- Integrated Dissipator Transdimensional Reconstructor Achievements -------------- Factory Defaults Hack The Planet Official Business Versatile Well-fed Force Field Challenges ------------ None Game ------ Seed IntegratedMachineProtomatter Manual? 0 Play Time 04:28:46 Cumulative 286.1 hours Start 2025.12.12 @ 19:44:42 End 2025.12.13 @ 00:33:24 Sessions 1 Manual Loads 0 Difficulty Rogue Special Mode None Game No. 97 Rogue 97 Adventurer 0 Explorer 0 Win Type - Total 2 Types 1/0/0/0/0/0/0/0/0/1 Lore% 73 Gallery% 66 Achievement% 56 Wizard Run 0 Options --------- Layout 1 ASCII 0 Keyboard 0 Movement Mouse Keybinds 0 Fullscreen 2 Font 32/SmallcapsGlow Map View 50x35 Zoom Use 0% Tactical HUD 1 Map Filters NONE Filters NONE Steam 1 RUN: dab7d425-4108-4075-a888-59d6fa002c90